[Event "Championnat d'Europe Rapide"]
[Date "2024.12.07"]
[White "Nikolovski, Kiril"]
[Black "Mamedov, Rauf"]
[WhiteElo "1950"]
[BlackElo "2656"]
[Round "1.14"]
[Result "0-1"]
[TimeControl "900+10"]

1. Nf3 {[%emt 00:00:03] [%clk 00:15:17]} c5 {[%emt 00:00:02] [%clk 00:15:18]} 2.
g3 {[%emt 00:00:02] [%clk 00:15:25]} g6 {[%emt 00:00:04] [%clk 00:15:27]} 3. Bg2
{[%emt 00:00:04] [%clk 00:15:29]} Bg7 {[%emt 00:00:03] [%clk 00:15:35]} 4. c4
{[%clk 00:15:36]} Nc6 {[%emt 00:00:02] [%clk 00:15:43]} 5. Nc3 {[%emt 00:00:08]
[%clk 00:15:38]} d6 {[%emt 00:00:03] [%clk 00:15:50]} 6. O-O {[%emt 00:00:08]
[%clk 00:15:40]} e5 {[%emt 00:00:03] [%clk 00:15:57]} 7. d3 {[%emt 00:00:04]
[%clk 00:15:46]} Nge7 {[%emt 00:00:02] [%clk 00:16:06]} 8. a3 {[%emt 00:00:28]
[%clk 00:15:29]} O-O {[%emt 00:00:16] [%clk 00:15:59]} 9. Rb1 {[%emt 00:00:36]
[%clk 00:15:03]} a5 {[%emt 00:00:01] [%clk 00:16:07]} 10. Nd5 {[%emt 00:01:11]
[%clk 00:14:03]} Nxd5 {[%emt 00:00:08] [%clk 00:16:09]} 11. cxd5 {[%emt
00:00:01] [%clk 00:14:11]} Ne7 {[%emt 00:00:05] [%clk 00:16:15]} 12. Nd2 {[%emt
00:02:37] [%clk 00:11:44]} a4 {[%emt 00:00:09] [%clk 00:16:16]} 13. b4 {[%emt
00:00:38] [%clk 00:11:16]} axb3 {[%emt 00:03:12] [%clk 00:13:14]} 14. Qxb3
{[%emt 00:00:09] [%clk 00:11:17]} Nf5 {[%emt 00:00:25] [%clk 00:12:59]} 15. Bb2
{[%emt 00:00:37] [%clk 00:10:50]} h5 {[%emt 00:00:15] [%clk 00:12:55]} 16. e4
{[%emt 00:02:04] [%clk 00:08:55]} Nd4 {[%emt 00:00:07] [%clk 00:12:57]} 17. Bxd4
{[%emt 00:00:02] [%clk 00:09:04]} exd4 {[%clk 00:13:06]} 18. Nc4 {[%emt
00:00:30] [%clk 00:08:43]} Ra6 {[%emt 00:00:35] [%clk 00:12:42]} 19. f4 {[%emt
00:01:18] [%clk 00:07:34]} h4 {[%emt 00:00:13] [%clk 00:12:40]} 20. Nb6 {[%emt
00:01:06] [%clk 00:06:39]} Bg4 {[%emt 00:00:28] [%clk 00:12:21]} 21. Nc4 {[%emt
00:00:08] [%clk 00:06:42]} Bc8 {[%emt 00:01:47] [%clk 00:10:44]} 22. Nb6 {[%clk
00:06:50]} Re8 {[%emt 00:01:06] [%clk 00:09:48]} 23. Rf2 {[%emt 00:01:14] [%clk
00:05:46]} Bg4 {[%emt 00:00:26] [%clk 00:09:32]} 24. Nc4 {[%emt 00:00:22] [%clk
00:05:34]} Re7 {[%emt 00:00:17] [%clk 00:09:26]} 25. Rfb2 {[%emt 00:00:57] [%clk
00:04:46]} h3 {[%emt 00:00:36] [%clk 00:09:00]} 26. Bf1 {[%emt 00:01:47] [%clk
00:03:09]} Kh7 {[%emt 00:00:02] [%clk 00:09:09]} 27. Qc2 {[%emt 00:00:18] [%clk
00:03:00]} Bc8 {[%emt 00:00:25] [%clk 00:08:54]} 28. Rb6 {[%emt 00:00:25] [%clk
00:02:46]} f5 {[%emt 00:01:30] [%clk 00:07:33]} 29. Rxa6 {[%emt 00:00:10] [%clk
00:02:46]} bxa6 {[%clk 00:07:43]} 30. Rb6 {[%emt 00:00:05] [%clk 00:02:50]} fxe4
{[%clk 00:07:52]} 31. Rxd6 {[%emt 00:00:38] [%clk 00:02:23]} Qe8 {[%emt
00:00:48] [%clk 00:07:13]} 32. dxe4 {[%emt 00:00:27] [%clk 00:02:06]} Rxe4
{[%emt 00:00:41] [%clk 00:06:42]} 33. Bd3 {[%emt 00:00:04] [%clk 00:02:12]} Bf5
{[%clk 00:06:52]} 34. Bxe4 {[%emt 00:01:03] [%clk 00:01:20]} Bxe4 {[%clk
00:07:01]} 35. Qd2 {[%emt 00:00:14] [%clk 00:01:17]} Qb5 {[%emt 00:00:10] [%clk
00:07:00]} 36. Qe2 {[%emt 00:00:58] [%clk 00:00:29]} Qb1+ {[%emt 00:01:19] [%clk
00:05:52]} 37. Kf2 {[%clk 00:00:38]} d3 {[%emt 00:02:18] [%clk 00:03:44]} 38.
Qxe4 {[%emt 00:00:21] [%clk 00:00:27]} Bd4+ {[%clk 00:03:53]} 0-1

[Site "Europe Echecs"]

[Event "Championnat d'Europe Rapide"]
[Date "2024.12.07"]
[White "Ciolacu, Alessia-Mihaela"]
[Black "Fressinet, Laurent"]
[WhiteElo "2124"]
[BlackElo "2588"]
[Round "1.16"]
[Result "0-1"]
[TimeControl "900+10"]

1. d4 {[%emt 00:00:02] [%clk 00:15:17]} Nf6 {[%emt 00:01:32] [%clk 00:13:45]} 2.
c4 {[%emt 00:00:07] [%clk 00:15:22]} g6 {[%emt 00:00:02] [%clk 00:13:53]} 3. Nc3
{[%emt 00:00:04] [%clk 00:15:28]} Bg7 {[%emt 00:00:02] [%clk 00:14:01]} 4. e4
{[%emt 00:00:03] [%clk 00:15:35]} d6 {[%emt 00:00:02] [%clk 00:14:09]} 5. Be2
{[%emt 00:00:29] [%clk 00:15:15]} O-O {[%emt 00:00:06] [%clk 00:14:13]} 6. Be3
{[%emt 00:00:03] [%clk 00:15:23]} a5 {[%emt 00:00:08] [%clk 00:14:15]} 7. h3
{[%emt 00:01:04] [%clk 00:14:28]} Na6 {[%emt 00:01:43] [%clk 00:12:43]} 8. Nf3
{[%emt 00:00:44] [%clk 00:13:54]} e5 {[%emt 00:00:02] [%clk 00:12:51]} 9. d5
{[%emt 00:02:55] [%clk 00:11:09]} Nd7 {[%emt 00:00:14] [%clk 00:12:47]} 10. Qc2
{[%emt 00:00:45] [%clk 00:10:34]} Ndc5 {[%emt 00:00:53] [%clk 00:12:04]} 11. g4
{[%emt 00:02:25] [%clk 00:08:20]} Kh8 {[%emt 00:00:16] [%clk 00:11:58]} 12.
O-O-O {[%emt 00:01:07] [%clk 00:07:22]} Nb4 {[%emt 00:00:52] [%clk 00:11:16]}
13. Qb1 {[%emt 00:01:08] [%clk 00:06:24]} a4 {[%emt 00:01:07] [%clk 00:10:19]}
14. g5 {[%emt 00:01:39] [%clk 00:04:55]} f5 {[%emt 00:02:11] [%clk 00:08:19]}
15. gxf6 {[%emt 00:00:39] [%clk 00:04:26]} Qxf6 {[%emt 00:00:14] [%clk
00:08:14]} 16. Rdg1 {[%emt 00:00:52] [%clk 00:03:44]} a3 {[%emt 00:00:28] [%clk
00:07:56]} 17. b3 {[%emt 00:00:04] [%clk 00:03:50]} c6 {[%emt 00:00:16] [%clk
00:07:50]} 18. h4 {[%emt 00:00:38] [%clk 00:03:23]} cxd5 {[%emt 00:00:38] [%clk
00:07:22]} 19. Nxd5 {[%emt 00:00:34] [%clk 00:02:59]} Nxd5 {[%emt 00:00:07]
[%clk 00:07:24]} 20. cxd5 {[%emt 00:00:02] [%clk 00:03:07]} Nxe4 {[%emt
00:01:40] [%clk 00:05:55]} 21. Qxe4 {[%emt 00:00:37] [%clk 00:02:39]} Bf5 {[%emt
00:00:17]} 22. Qb4 {[%clk 00:02:35]} Rfc8+ {[%emt 00:00:37] [%clk 00:05:35]} 23.
Kd1 {[%emt 00:00:05] [%clk 00:02:40]} Rc2 {[%emt 00:00:02] [%clk 00:05:43]} 24.
Qxb7 {[%emt 00:01:30] [%clk 00:01:20]} Rac8 {[%emt 00:00:28] [%clk 00:05:25]}
25. Bg5 {[%emt 00:00:30] [%clk 00:01:00]} Qf8 {[%emt 00:00:25] [%clk 00:05:11]}
26. h5 {[%emt 00:00:42] [%clk 00:00:28]} Rxa2 {[%emt 00:00:26] [%clk 00:04:55]}
27. hxg6 {[%emt 00:00:05] [%clk 00:00:32]} Bxg6 {[%emt 00:00:25] [%clk
00:04:40]} 28. Nh4 {[%emt 00:00:21] [%clk 00:00:21]} Bc2+ {[%emt 00:00:57] [%clk
00:03:53]} 29. Ke1 {[%emt 00:00:06] [%clk 00:00:26]} Rb8 {[%emt 00:00:02] [%clk
00:04:00]} 30. Qd7 {[%emt 00:00:20] [%clk 00:00:16]} Rxb3 {[%emt 00:00:30] [%clk
00:03:40]} 31. f3 {[%emt 00:00:04] [%clk 00:00:23]} Rb1+ {[%emt 00:00:59] [%clk
00:02:51]} 32. Kf2 {[%emt 00:00:02] [%clk 00:00:31]} Rxg1 {[%emt 00:00:01] [%clk
00:02:59]} 33. Rxg1 {[%emt 00:00:05] [%clk 00:00:36]} Bd3 {[%emt 00:00:20] [%clk
00:02:49]} 34. Re1 {[%emt 00:00:06] [%clk 00:00:41]} e4 {[%emt 00:00:09] [%clk
00:02:50]} 35. Ng6+ {[%emt 00:00:39] [%clk 00:00:12]} hxg6 {[%emt 00:00:08]
[%clk 00:02:51]} 36. Rh1+ {[%emt 00:00:03] [%clk 00:00:19]} Kg8 {[%emt 00:00:01]
[%clk 00:03:00]} 37. Qe6+ {[%emt 00:00:05] [%clk 00:00:24]} Qf7 {[%emt 00:00:04]
[%clk 00:03:06]} 38. Qc8+ {[%emt 00:00:06] [%clk 00:00:28]} Bf8 {[%emt 00:00:02]
[%clk 00:03:15]} 39. Qh3 {[%emt 00:00:27] [%clk 00:00:11]} Qxf3+ {[%emt
00:00:29] [%clk 00:02:56]} 0-1

[Site "Europe Echecs"]

[Event "Championnat d'Europe Rapide"]
[Date "2024.12.07"]
[White "Lagarde, Maxime"]
[Black "Froewis, Annika"]
[WhiteElo "2600"]
[BlackElo "2069"]
[Round "1.17"]
[Result "1-0"]
[TimeControl "900+10"]

1. e4 {[%emt 00:01:46] [%clk 00:13:29]} e5 {[%emt 00:00:06] [%clk 00:15:19]} 2.
Nf3 {[%emt 00:00:02] [%clk 00:13:36]} Nc6 {[%emt 00:00:02] [%clk 00:15:27]} 3.
Bc4 {[%emt 00:00:21] [%clk 00:13:24]} Nf6 {[%emt 00:00:08] [%clk 00:15:30]} 4.
d3 {[%emt 00:00:03] [%clk 00:13:31]} Be7 {[%emt 00:00:16] [%clk 00:15:24]} 5.
Nc3 {[%emt 00:00:28] [%clk 00:13:12]} d6 {[%emt 00:00:21] [%clk 00:15:14]} 6. a3
{[%emt 00:00:05] [%clk 00:13:17]} O-O {[%emt 00:00:22] [%clk 00:15:02]} 7. Ba2
{[%emt 00:00:11] [%clk 00:13:16]} Be6 {[%emt 00:00:35] [%clk 00:14:37]} 8. Nd5
{[%emt 00:00:09] [%clk 00:13:17]} Bxd5 {[%emt 00:00:44] [%clk 00:14:03]} 9. exd5
{[%emt 00:00:02] [%clk 00:13:24]} Nb8 {[%emt 00:00:36] [%clk 00:13:38]} 10. O-O
{[%emt 00:02:56] [%clk 00:10:38]} a5 {[%emt 00:00:25] [%clk 00:13:23]} 11. Re1
{[%emt 00:00:08] [%clk 00:10:40]} Nbd7 {[%emt 00:01:36] [%clk 00:11:57]} 12. d4
{[%emt 00:00:23] [%clk 00:10:27]} exd4 {[%emt 00:00:34] [%clk 00:11:34]} 13.
Nxd4 {[%emt 00:00:02] [%clk 00:10:35]} Re8 {[%emt 00:00:31] [%clk 00:11:12]} 14.
Bg5 {[%emt 00:02:08] [%clk 00:08:36]} h6 {[%emt 00:01:16] [%clk 00:10:06]} 15.
Bf4 {[%emt 00:01:20] [%clk 00:07:26]} Nh7 {[%emt 00:01:11] [%clk 00:09:05]} 16.
c3 {[%emt 00:01:25] [%clk 00:06:12]} Nhf8 {[%emt 00:01:36] [%clk 00:07:39]} 17.
Qg4 {[%emt 00:00:57] [%clk 00:05:24]} Ng6 {[%emt 00:01:22] [%clk 00:06:28]} 18.
Bg3 {[%emt 00:00:35] [%clk 00:04:58]} Nde5 {[%emt 00:03:02] [%clk 00:03:37]} 19.
Qh5 {[%emt 00:00:12] [%clk 00:04:56]} Bg5 {[%emt 00:01:25] [%clk 00:02:23]} 20.
Rad1 {[%emt 00:00:22] [%clk 00:04:43]} Qf6 {[%emt 00:00:46] [%clk 00:01:47]} 21.
Re4 {[%emt 00:00:43] [%clk 00:04:10]} Re7 {[%emt 00:00:43] [%clk 00:01:13]} 22.
h4 {[%emt 00:00:35] [%clk 00:03:45]} Bf4 {[%emt 00:00:17] [%clk 00:01:07]} 23.
Nf5 {[%emt 00:00:09] [%clk 00:03:46]} Bxg3 {[%emt 00:00:44] [%clk 00:00:33]} 24.
fxg3 {[%emt 00:00:57] [%clk 00:02:59]} Rd7 {[%emt 00:00:25] [%clk 00:00:18]} 25.
Rf1 {[%emt 00:00:10] [%clk 00:02:59]} Qd8 {[%emt 00:00:08] [%clk 00:00:20]} 26.
g4 {[%emt 00:00:22] [%clk 00:02:47]} b5 {[%emt 00:00:14] [%clk 00:00:16]} 27. g5
{[%emt 00:00:09] [%clk 00:02:48]} hxg5 {[%emt 00:00:06] [%clk 00:00:19]} 28.
hxg5 {[%emt 00:00:02] [%clk 00:02:56]} b4 {[%emt 00:00:11] [%clk 00:00:19]} 29.
Bb1 {[%emt 00:00:04] [%clk 00:03:02]} bxc3 {[%emt 00:00:10] [%clk 00:00:19]} 30.
Re3 {[%emt 00:00:59] [%clk 00:02:13]} cxb2 {[%emt 00:00:19] [%clk 00:00:11]} 31.
Rh3 {[%emt 00:00:02] [%clk 00:02:20]} f6 {[%emt 00:00:04] [%clk 00:00:16]} 32.
gxf6 {[%emt 00:00:33] [%clk 00:01:57]} gxf6 {[%emt 00:00:05] [%clk 00:00:21]}
33. Rg3 {[%emt 00:00:27] [%clk 00:01:40]} Rh7 {[%emt 00:00:17] [%clk 00:00:15]}
34. Nh6+ {[%emt 00:00:19] [%clk 00:01:31]} Kg7 {[%emt 00:00:14] [%clk 00:00:12]}
35. Rxg6+ {[%emt 00:00:03] [%clk 00:01:37]} 1-0

[Site "Europe Echecs"]

[Event "Championnat d'Europe Rapide"]
[Date "2024.12.07"]
[White "Chuchukova, Stefani"]
[Black "Pichot, Alan"]
[WhiteElo "1868"]
[BlackElo "2637"]
[Round "1.18"]
[Result "0-1"]
[TimeControl "900+10"]

1. e4 {[%clk 00:15:17]} c5 {[%emt 00:00:17] [%clk 00:15:03]} 2. d4 {[%emt
00:00:04] [%clk 00:15:23]} cxd4 {[%emt 00:00:03] [%clk 00:15:10]} 3. Qxd4 {[%emt
00:00:03] [%clk 00:15:31]} Nc6 {[%emt 00:00:04] [%clk 00:15:15]} 4. Qd3 {[%emt
00:00:05] [%clk 00:15:37]} Nf6 {[%emt 00:00:24] [%clk 00:15:01]} 5. Nc3 {[%emt
00:00:10] [%clk 00:15:37]} d6 {[%emt 00:00:17] [%clk 00:14:54]} 6. Nf3 {[%emt
00:00:20] [%clk 00:15:27]} g6 {[%emt 00:00:25] [%clk 00:14:39]} 7. b3 {[%emt
00:00:06] [%clk 00:15:32]} Bg7 {[%emt 00:00:05] [%clk 00:14:43]} 8. Bb2 {[%emt
00:00:03] [%clk 00:15:39]} O-O {[%emt 00:00:32] [%clk 00:14:20]} 9. Be2 {[%emt
00:00:17] [%clk 00:15:32]} Qa5 {[%emt 00:00:17] [%clk 00:14:13]} 10. Nd2 {[%emt
00:02:15] [%clk 00:13:28]} Nb4 {[%emt 00:00:08] [%clk 00:14:15]} 11. Qg3 {[%emt
00:00:54] [%clk 00:12:44]} Nxc2+ {[%emt 00:00:03] [%clk 00:14:22]} 12. Kd1
{[%emt 00:00:32] [%clk 00:12:22]} Nxa1 {[%emt 00:00:06] [%clk 00:14:26]} 13.
Bxa1 {[%emt 00:00:02] [%clk 00:12:30]} Be6 {[%emt 00:00:19] [%clk 00:14:16]} 14.
h4 {[%emt 00:00:08] [%clk 00:12:33]} Rac8 {[%emt 00:00:17] [%clk 00:14:09]} 15.
Bc4 {[%emt 00:00:44] [%clk 00:11:58]} Nh5 {[%emt 00:00:25] [%clk 00:13:54]} 16.
Qf3 {[%emt 00:00:19] [%clk 00:11:50]} b5 {[%emt 00:00:07] [%clk 00:13:57]} 17.
g4 {[%emt 00:01:19] [%clk 00:10:41]} bxc4 {[%emt 00:00:08] [%clk 00:13:58]} 18.
gxh5 {[%emt 00:00:05] [%clk 00:10:47]} cxb3 {[%emt 00:00:43] [%clk 00:13:26]}
19. Nd5 {[%emt 00:00:17] [%clk 00:10:40]} Bxd5 {[%emt 00:00:21] [%clk 00:13:14]}
20. Bxg7 {[%emt 00:00:05] [%clk 00:10:45]} Kxg7 {[%emt 00:00:07] [%clk
00:13:17]} 21. h6+ {[%emt 00:00:32] [%clk 00:10:23]} Kg8 {[%emt 00:00:08] [%clk
00:13:19]} 22. exd5 {[%emt 00:01:36] [%clk 00:08:57]} bxa2 {[%emt 00:00:05]
[%clk 00:13:24]} 23. Re1 {[%emt 00:00:50] [%clk 00:08:16]} a1=Q+ {[%emt
00:00:06] [%clk 00:13:30]} 24. Ke2 {[%emt 00:00:02] [%clk 00:08:23]} Qe5+ {[%emt
00:00:07] [%clk 00:13:32]} 25. Kf1 {[%emt 00:00:08] [%clk 00:08:26]} Qaxd5
{[%emt 00:00:05] [%clk 00:13:37]} 0-1

[Site "Europe Echecs"]

[Event "Championnat d'Europe Rapide"]
[Date "2024.12.07"]
[White "Georgiev, Kiril"]
[Black "Pirvulescu, Ekaterina"]
[WhiteElo "2537"]
[BlackElo "2063"]
[Round "1.19"]
[Result "1-0"]
[TimeControl "900+10"]

1. Nf3 {[%emt 00:00:03] [%clk 00:15:16]} c5 {[%emt 00:00:02] [%clk 00:15:19]} 2.
b3 {[%emt 00:00:13] [%clk 00:15:14]} d6 {[%emt 00:00:08] [%clk 00:15:21]} 3. c4
{[%emt 00:00:04] [%clk 00:15:19]} e5 {[%emt 00:00:08] [%clk 00:15:23]} 4. Nc3
{[%emt 00:00:02] [%clk 00:15:27]} g6 {[%emt 00:00:15] [%clk 00:15:18]} 5. g3
{[%emt 00:00:25] [%clk 00:15:11]} Bg7 {[%emt 00:00:03] [%clk 00:15:26]} 6. Bg2
{[%emt 00:00:04] [%clk 00:15:16]} Ne7 {[%emt 00:00:04] [%clk 00:15:32]} 7. Rb1
{[%emt 00:01:13] [%clk 00:14:13]} Nbc6 {[%emt 00:00:03] [%clk 00:15:40]} 8. d3
{[%emt 00:00:08] [%clk 00:14:14]} O-O {[%emt 00:00:13] [%clk 00:15:37]} 9. O-O
{[%emt 00:00:17] [%clk 00:14:07]} h6 {[%emt 00:00:30] [%clk 00:15:19]} 10. a3
{[%emt 00:00:12] [%clk 00:14:03]} Be6 {[%emt 00:00:49] [%clk 00:14:41]} 11. b4
{[%emt 00:00:24] [%clk 00:13:49]} b6 {[%emt 00:01:12] [%clk 00:13:40]} 12. bxc5
{[%emt 00:01:48] [%clk 00:12:09]} dxc5 {[%emt 00:00:24] [%clk 00:13:27]} 13. e4
{[%emt 00:00:52] [%clk 00:11:27]} Qd7 {[%emt 00:06:47] [%clk 00:06:51]} 14. Nd5
{[%emt 00:03:01] [%clk 00:08:35]} f5 {[%emt 00:00:47] [%clk 00:06:14]} 15. Bb2
{[%emt 00:00:57] [%clk 00:07:48]} fxe4 {[%emt 00:00:15] [%clk 00:06:08]} 16.
dxe4 {[%emt 00:00:04] [%clk 00:07:54]} Rad8 {[%emt 00:00:45] [%clk 00:05:34]}
17. Qd3 {[%emt 00:00:53] [%clk 00:07:10]} Bg4 {[%emt 00:01:10] [%clk 00:04:34]}
18. Nd2 {[%emt 00:00:50] [%clk 00:06:29]} Nd4 {[%emt 00:01:00] [%clk 00:03:46]}
19. f3 {[%emt 00:01:50] [%clk 00:04:48]} Be6 {[%emt 00:00:23] [%clk 00:03:34]}
20. Rf2 {[%emt 00:00:02] [%clk 00:04:56]} Nec6 {[%emt 00:00:27] [%clk 00:03:16]}
21. Nf1 {[%emt 00:00:05] [%clk 00:05:00]} Rf7 {[%emt 00:00:17] [%clk 00:03:10]}
22. Nfe3 {[%emt 00:00:23] [%clk 00:04:46]} Rdf8 {[%emt 00:00:13] [%clk
00:03:08]} 23. Rbf1 {[%emt 00:00:02] [%clk 00:04:54]} Kh7 {[%emt 00:01:23] [%clk
00:01:55]} 24. Bc3 {[%emt 00:00:21] [%clk 00:04:42]} Qb7 {[%emt 00:00:56] [%clk
00:01:10]} 25. Kh1 {[%emt 00:01:33] [%clk 00:03:18]} Qd7 {[%emt 00:00:02] [%clk
00:01:19]} 26. h4 {[%emt 00:00:32] [%clk 00:02:55]} Qd8 {[%emt 00:00:12] [%clk
00:01:18]} 27. Kh2 {[%emt 00:00:06] [%clk 00:02:59]} Kg8 {[%emt 00:00:36] [%clk
00:00:52]} 28. Bd2 {[%emt 00:00:37] [%clk 00:02:32]} g5 {[%emt 00:00:22] [%clk
00:00:41]} 29. g4 {[%emt 00:01:06] [%clk 00:01:36]} gxh4 {[%emt 00:00:15] [%clk
00:00:35]} 30. Nf5 {[%emt 00:00:01] [%clk 00:01:44]} Bxf5 {[%emt 00:00:25] [%clk
00:00:21]} 31. gxf5 {[%emt 00:00:23] [%clk 00:01:31]} Kh7 {[%emt 00:00:07] [%clk
00:00:24]} 32. Bh3 {[%emt 00:00:06] [%clk 00:01:34]} Bf6 {[%emt 00:00:02] [%clk
00:00:32]} 33. Bg4 {[%emt 00:00:28] [%clk 00:01:17]} Rg7 {[%emt 00:00:06] [%clk
00:00:36]} 34. Bh5 {[%emt 00:00:10] [%clk 00:01:16]} Bg5 {[%emt 00:00:16] [%clk
00:00:31]} 35. Bg6+ {[%emt 00:00:06] [%clk 00:01:20]} Kh8 {[%emt 00:00:12] [%clk
00:00:29]} 36. Rg2 {[%emt 00:00:16] [%clk 00:01:14]} Rxg6 {[%emt 00:00:26] [%clk
00:00:14]} 37. fxg6 {[%emt 00:00:08] [%clk 00:01:15]} Kg7 {[%emt 00:00:04] [%clk
00:00:20]} 38. Kh1 {[%emt 00:00:42] [%clk 00:00:43]} Kxg6 {[%emt 00:00:12] [%clk
00:00:19]} 39. f4 {[%emt 00:00:11] [%clk 00:00:41]} exf4 {[%emt 00:00:04] [%clk
00:00:26]} 40. e5+ {[%emt 00:00:03] [%clk 00:00:46]} Nf5 {[%emt 00:00:09] [%clk
00:00:28]} 41. Nxf4+ {[%emt 00:00:20] [%clk 00:00:36]} Kh7 {[%emt 00:00:02]
[%clk 00:00:36]} 42. Qe4 {[%emt 00:00:07] [%clk 00:00:38]} Ncd4 {[%emt 00:00:16]
[%clk 00:00:31]} 43. Ne6 {[%emt 00:00:16] [%clk 00:00:32]} Nxe6 {[%emt 00:00:22]
[%clk 00:00:20]} 44. Rxf5 {[%emt 00:00:02] [%clk 00:00:39]} Kg7 {[%emt 00:00:13]
[%clk 00:00:17]} 45. Rgf2 {[%emt 00:00:22] [%clk 00:00:26]} Bxd2 {[%emt
00:00:15] [%clk 00:00:13]} 46. Qb7+ {[%emt 00:00:13] [%clk 00:00:23]} Kg8 {[%emt
00:00:08] [%clk 00:00:15]} 47. Rxf8+ {[%emt 00:00:02] [%clk 00:00:31]} Nxf8
{[%emt 00:00:05] [%clk 00:00:20]} 48. Qf7+ {[%clk 00:00:40]} Kh8 {[%emt
00:00:05] [%clk 00:00:26]} 49. Qxf8+ {[%emt 00:00:02] [%clk 00:00:48]} Qxf8
{[%emt 00:00:02] [%clk 00:00:35]} 50. Rxf8+ {[%emt 00:00:01] [%clk 00:00:56]}
Kg7 {[%emt 00:00:03] [%clk 00:00:42]} 51. Rf3 {[%emt 00:00:09] [%clk 00:00:56]}
Bg5 {[%emt 00:00:18] [%clk 00:00:34]} 52. a4 {[%emt 00:00:03] [%clk 00:01:03]}
Kg6 {[%emt 00:00:12] [%clk 00:00:33]} 53. Kg2 {[%emt 00:00:06] [%clk 00:01:07]}
Bd2 {[%emt 00:00:18] [%clk 00:00:25]} 54. e6 {[%emt 00:00:10] [%clk 00:01:06]}
Bg5 {[%emt 00:00:15] [%clk 00:00:21]} 55. Rf7 {[%emt 00:00:03] [%clk 00:01:13]}
a6 {[%emt 00:00:07] [%clk 00:00:25]} 56. Kh3 {[%emt 00:00:12] [%clk 00:01:10]}
b5 {[%emt 00:00:19] [%clk 00:00:16]} 57. axb5 {[%emt 00:00:07] [%clk 00:01:13]}
axb5 {[%emt 00:00:01] [%clk 00:00:25]} 58. cxb5 {[%emt 00:00:02] [%clk
00:01:21]} c4 {[%emt 00:00:04] [%clk 00:00:30]} 59. Rc7 {[%emt 00:00:16] [%clk
00:01:15]} c3 {[%emt 00:00:08] [%clk 00:00:33]} 60. b6 {[%emt 00:00:12] [%clk
00:01:13]} c2 {[%emt 00:00:11] [%clk 00:00:32]} 61. Rxc2 {[%emt 00:00:07] [%clk
00:01:16]} Kf6 {[%emt 00:00:04] [%clk 00:00:38]} 62. b7 {[%emt 00:00:01] [%clk
00:01:25]} 1-0

[Site "Europe Echecs"]

[Event "Championnat d'Europe Rapide"]
[Date "2024.12.07"]
[White "Aliu, Besnik"]
[Black "Djukic, Nikola"]
[WhiteElo "1990"]
[BlackElo "2493"]
[Round "1.20"]
[Result "0-1"]
[TimeControl "900+10"]

1. Nf3 {[%emt 00:00:03] [%clk 00:15:13]} Nf6 {[%emt 00:00:05] [%clk 00:15:17]}
2. g3 {[%emt 00:00:07] [%clk 00:15:16]} g6 {[%emt 00:00:04] [%clk 00:15:23]} 3.
Bg2 {[%emt 00:00:06] [%clk 00:15:20]} Bg7 {[%emt 00:00:03] [%clk 00:15:30]} 4.
d4 {[%emt 00:00:03] [%clk 00:15:28]} O-O {[%emt 00:00:45] [%clk 00:14:54]} 5.
O-O {[%emt 00:00:08] [%clk 00:15:30]} d5 {[%emt 00:00:15] [%clk 00:14:49]} 6.
Bf4 {[%emt 00:00:42] [%clk 00:14:57]} c6 {[%emt 00:00:49] [%clk 00:14:10]} 7.
Nbd2 {[%emt 00:01:07] [%clk 00:14:01]} Nbd7 {[%emt 00:00:34] [%clk 00:13:46]} 8.
c4 {[%emt 00:00:28] [%clk 00:13:43]} b6 {[%emt 00:00:41] [%clk 00:13:15]} 9. Rc1
{[%emt 00:00:23] [%clk 00:13:30]} Bb7 {[%emt 00:00:02] [%clk 00:13:23]} 10. Ne5
{[%emt 00:00:15] [%clk 00:13:25]} c5 {[%emt 00:03:06] [%clk 00:10:27]} 11. e3
{[%emt 00:01:26] [%clk 00:12:08]} cxd4 {[%emt 00:01:49] [%clk 00:08:48]} 12.
exd4 {[%emt 00:00:34] [%clk 00:11:45]} Nh5 {[%emt 00:00:07] [%clk 00:08:51]} 13.
cxd5 {[%emt 00:01:54] [%clk 00:10:02]} Nxf4 {[%emt 00:00:06] [%clk 00:08:54]}
14. gxf4 {[%emt 00:00:07] [%clk 00:10:05]} Nxe5 {[%emt 00:00:33] [%clk
00:08:31]} 15. fxe5 {[%emt 00:00:34] [%clk 00:09:41]} Bxd5 {[%emt 00:00:03]
[%clk 00:08:38]} 16. Bxd5 {[%emt 00:02:25] [%clk 00:07:25]} Qxd5 {[%emt
00:00:03] [%clk 00:08:46]} 17. Nb3 {[%emt 00:00:01] [%clk 00:07:34]} a5 {[%emt
00:00:20] [%clk 00:08:36]} 18. a4 {[%emt 00:01:00] [%clk 00:06:44]} Rac8 {[%emt
00:00:06] [%clk 00:08:41]} 19. Re1 {[%emt 00:00:55] [%clk 00:05:59]} Bh6 {[%emt
00:00:47] [%clk 00:08:03]} 20. Rxc8 {[%emt 00:00:55] [%clk 00:05:14]} Rxc8
{[%emt 00:00:02] [%clk 00:08:11]} 21. Qd3 {[%emt 00:00:16] [%clk 00:05:08]} Rc4
{[%emt 00:00:22] [%clk 00:07:59]} 22. Ra1 {[%emt 00:00:56] [%clk 00:04:22]} Rb4
{[%emt 00:00:27] [%clk 00:07:43]} 23. Ra3 {[%emt 00:00:33] [%clk 00:03:59]} e6
{[%emt 00:00:20] [%clk 00:07:32]} 24. h4 {[%emt 00:00:43] [%clk 00:03:27]} Bf8
{[%emt 00:00:43] [%clk 00:06:58]} 25. f3 {[%emt 00:00:20] [%clk 00:03:17]} h5
{[%emt 00:01:38] [%clk 00:05:30]} 26. Kf2 {[%emt 00:00:07] [%clk 00:03:21]} b5
{[%emt 00:00:09] [%clk 00:05:30]} 27. Qe4 {[%emt 00:01:00] [%clk 00:02:31]} Rxb3
{[%emt 00:00:38] [%clk 00:05:02]} 28. Qxd5 {[%emt 00:01:23] [%clk 00:01:18]}
Rxb2+ {[%emt 00:00:02] [%clk 00:05:09]} 0-1

[Site "Europe Echecs"]